bitfinex/quotes_ETHUSD_20250406
["timestamp","ask_amount","ask_price","bid_price","bid_amount"]
[1743961233458,0.96270338,1695.4,1695.3,1.5224]
[1743961233970,0.55,1695.3,1695.0,1.5553]
[1743961234169,4.12954,1695.1,1695.0,1.5553]
[1743961234374,0.55,1695.0,1694.6,1.5553]
[1743961234925,0.41127967,1694.9,1694.6,1.61430464]
[1743961235223,4.54143967,1694.9,1694.0,1.5553]
[1743961235408,0.55,1694.8,1694.1,5.68719]
[1743961235579,4.68029,1694.8,1694.2,0.568719]
[1743961235979,0.41044921,1694.7,1694.1,1.5553]
[1743961236622,4.68079,1694.6,1694.1,1.5553]
[1743961236792,8.81175,1694.6,1694.1,1.5553]
[1743961236989,0.55,1694.4,1694.1,1.5553]
[1743961237319,0.40858114,1694.3,1694.1,1.5553]
[1743961237720,0.55,1694.9,1694.3,1.5374]
[1743961237892,0.40994549,1694.8,1694.3,2.104314]
[1743961238214,0.40994549,1694.8,1694.3,1.5374]
[1743961238416,0.40994549,1694.8,1694.4,4.13118]
[1743961238586,0.40994549,1694.8,1694.5,1.5374]
[1743961238791,42.458,1695.3,1694.6,0.05900339]
[1743961238993,0.3753968,1694.7,1694.6,1.5374]
[1743961239188,0.55,1695.0,1694.6,1.5374]
[1743961239375,4.12907,1695.3,1694.7,0.05900324]
[1743961239592,0.37619297,1694.9,1694.7,0.05900324]
[1743961239823,0.55,1695.2,1694.7,0.05900324]
[1743961239981,3.0,1695.3,1694.7,0.05900324]
[1743961240182,4.1294,1695.2,1694.8,1.5374]
[1743961240583,4.1299,1695.0,1694.8,1.5374]
[1743961240872,0.55,1694.9,1694.5,1.5374]
[1743961241035,4.13056,1694.7,1694.5,1.5374]
[1743961241184,0.55,1694.7,1694.5,1.5374]
[1743961241521,0.37424563,1694.6,1694.5,1.5374]
[1743961241728,4.50510563,1694.6,1694.3,1.5619]
[1743961241894,4.68159,1694.3,1693.6,1.5619]
[1743961242219,0.37255343,1694.2,1693.7,8.144]
[1743961242512,0.37255343,1694.2,1693.8,0.8734312]
[1743961242935,4.13185,1694.2,1693.8,0.8734312]
[1743961243086,0.55,1694.1,1693.7,8.20303579]
[1743961243285,0.37230181,1694.0,1693.7,8.20303579]
[1743961243494,0.37230181,1694.0,1693.6,1.5619]
[1743961244217,0.37230181,1694.0,1693.6,1.6209396]
[1743961244400,0.37230181,1694.0,1693.6,2.59733356]
[1743961245225,0.37230181,1694.0,1693.7,4.13295]
[1743961245397,0.37230181,1694.0,1693.9,1.5619]
[1743961245808,4.68126,1694.4,1693.9,1.5619]
[1743961245986,0.36795937,1694.0,1693.9,1.5619]
[1743961246182,4.13163,1694.3,1693.9,1.5619]
[1743961246183,0.55,1694.1,1693.9,1.5619]
[1743961246421,0.36795937,1694.0,1693.9,1.5619]
[1743961247143,4.13056,1694.7,1693.9,4.13247]
[1743961247283,3.4540685,1694.8,1694.2,1.5619]
[1743961247690,4.13054,1694.7,1694.2,1.5619]
[1743961247936,0.55,1694.6,1694.2,1.5619]
[1743961248342,4.13149,1694.3,1693.0,2.182606]
[1743961248644,0.55,1693.9,1693.2,4.13402]
[1743961248931,0.55,1694.0,1693.3,1.5619]
[1743961249085,4.68224,1694.0,1693.3,1.5619]
[1743961249421,0.55,1694.0,1693.3,5.69567]
[1743961249722,0.55,1694.0,1693.4,0.569567]
[1743961249889,4.13286,1693.8,1693.3,1.5619]
[1743961250085,4.1333,1693.6,1693.3,1.5619]
[1743961250294,4.1333,1693.6,1693.0,0.620706]
[1743961250295,4.1333,1693.6,1693.1,1.5619]
[1743961250502,8.26671,1693.6,1693.1,1.5619]
[1743961250716,5.0195322,1693.5,1693.0,0.620706]
[1743961250920,4.13412,1693.3,1693.0,0.620706]
[1743961251220,5.01878654,1693.2,1693.0,0.620706]
[1743961251415,0.55,1693.1,1693.0,0.620706]
[1743961251618,4.68442,1693.1,1693.0,0.620706]
[1743961251818,5.01777823,1693.1,1693.0,0.620706]
[1743961251990,6.45484605,1693.1,1693.0,0.620706]
[1743961254094,0.33335823,1693.1,1693.0,0.620706]
[1743961254292,1.5286,1693.4,1693.0,0.620706]
[1743961254495,0.30184586,1693.3,1693.0,0.620706]
[1743961254730,8.26766,1693.4,1693.0,0.620706]
[1743961255029,0.30158337,1693.2,1693.0,0.620706]
[1743961255327,0.30132085,1693.1,1693.0,0.620706]
[1743961255729,0.55,1693.4,1693.0,0.620706]
[1743961255942,0.30132085,1693.1,1693.0,0.620706]
[1743961256110,0.55,1693.4,1693.0,0.620706]
[1743961256311,0.30184586,1693.3,1693.0,0.620706]
[1743961256636,0.55,1693.4,1693.0,0.620706]
[1743961256830,0.30158337,1693.2,1693.0,0.620706]
[1743961257038,0.55,1693.4,1693.0,0.620706]
[1743961257198,0.30132085,1693.1,1693.0,0.620706]
[1743961257399,0.55,1693.4,1693.0,0.620706]
[1743961257605,0.30132085,1693.1,1693.0,0.620706]
[1743961257830,0.55,1693.4,1693.0,0.620706]
[1743961258031,0.30132085,1693.1,1693.0,0.620706]
[1743961258234,4.13351,1693.5,1693.0,1.2468666]
[1743961258547,6.0714123,1693.4,1693.0,0.620706]
[1743961258834,9.90299994,1693.1,1693.0,0.620706]
[1743961259211,10.20463129,1693.1,1693.0,0.620706]
[1743961259755,4.98605135,1693.1,1693.0,0.620706]
[1743961259958,0.30163135,1693.1,1693.0,0.620706]
[1743961260328,4.13382,1693.4,1693.0,0.620706]
[1743961260549,0.301903,1693.3,1693.0,0.620706]
[1743961260955,0.55,1693.2,1693.0,0.620706]
[1743961261180,4.13442,1693.1,1693.0,0.620706]
[1743961261664,4.435387,1693.1,1693.0,0.620706]
[1743961261846,0.300967,1693.1,1693.0,0.620706]
[1743961262160,0.300967,1693.1,1693.0,2.132506]
[1743961262457,0.300967,1693.1,1693.0,6.95296201]
[1743961262630,10.87982994,1693.9,1693.1,4.13438]
[1743961262830,4.13233,1694.0,1693.3,1.5118]
[1743961263032,0.27822874,1693.8,1693.3,1.5118]
[1743961263240,0.27847136,1693.9,1693.6,1.5118]
[1743961263454,4.41090665,1693.7,1693.6,1.5118]
[1743961263767,0.55,1693.6,1693.0,0.620706]
[1743961263950,4.13442,1693.1,1693.0,0.620706]
[1743961264132,4.68442,1693.1,1693.0,0.620706]
[1743961264340,7.93732575,1693.1,1693.0,0.620706]
[1743961264764,4.13602,1692.5,1692.3,1.5118]
[1743961264965,0.55,1692.4,1692.0,1.5118]
[1743961265271,0.55,1692.3,1692.0,1.5118]
[1743961265640,9.35447994,1692.5,1691.5,4.13813]
[1743961265641,0.55,1692.1,1691.6,1.5118]
[1743961265982,0.25179083,1692.0,1691.6,1.5118]
[1743961266346,0.55,1692.2,1691.6,1.5118]
[1743961266534,0.251528,1691.9,1691.6,1.5118]
[1743961266737,4.137,1692.1,1691.6,1.5118]
[1743961266947,0.25101931,1691.8,1691.4,1.5118]
[1743961267150,0.55,1691.2,1690.9,1.5118]
[1743961267574,9.35704994,1691.5,1690.9,1.5118]
[1743961267575,0.24584335,1691.1,1690.9,1.5118]
[1743961267961,0.55,1691.4,1690.9,1.5118]
[1743961268173,0.24568944,1691.0,1690.9,1.5118]
[1743961268358,0.55,1691.6,1690.9,1.5118]
[1743961268696,0.24700569,1691.5,1690.9,1.5118]
[1743961268850,0.24700569,1691.5,1691.0,4.13951]
[1743961269049,4.13759,1691.9,1691.1,1.5118]
[1743961269250,0.24779506,1691.8,1691.3,5.65052]
[1743961269486,4.13752,1691.9,1691.3,1.5118]
[1743961269682,6.74717994,1692.1,1691.3,5.6506]
[1743961270000,5.6655,1692.1,1691.3,5.6506]
[1743961270203,0.24832115,1692.0,1691.4,8.9010004]
[1743961270351,0.24832115,1692.0,1691.5,5.64997]
[1743961270560,0.24832115,1692.0,1691.8,1.5118]
[1743961270755,4.13589,1692.5,1691.8,1.5118]
[1743961270956,4.5286,1692.6,1691.8,13.7793]
[1743961270957,0.24811279,1691.9,1691.8,13.7793]
[1743961271276,3.4540685,1692.7,1692.0,1.5118]
[1743961271479,0.2503905,1692.6,1692.1,4.13676]
[1743961271654,0.2503905,1692.6,1692.2,5.71581]
[1743961271853,0.2503905,1692.6,1692.2,1.5793]
[1743961272690,4.13577,1692.6,1692.0,1.5793]
[1743961272898,0.79849791,1692.5,1692.0,1.5793]
[1743961273068,0.24849791,1692.5,1692.0,1.5793]
[1743961273398,0.55,1692.7,1692.2,1.5793]
[1743961273561,4.13589,1692.5,1692.2,1.5793]
[1743961273763,0.79876071,1692.6,1692.2,1.5793]
[1743961273962,0.24823509,1692.4,1692.2,1.5793]
[1743961274171,4.68566,1692.6,1692.2,1.5793]
[1743961274374,0.24797224,1692.3,1692.2,1.5793]
[1743961274572,4.68627,1692.4,1691.9,1.5793]
[1743961274764,4.68664,1692.2,1691.9,1.5793]
[1743961275079,0.55,1692.0,1691.6,1.5793]
[1743961275279,0.24692051,1691.9,1691.6,1.63840872]
[1743961275671,0.24692051,1691.9,1691.6,1.5793]
[1743961276068,0.55,1692.1,1691.6,1.5793]
[1743961276272,0.24718348,1692.0,1691.6,10.49197258]
[1743961276476,0.24718348,1692.0,1691.8,4.13749]
[1743961276794,1.5286,1692.5,1691.9,4.13733]
[1743961277103,0.468566,1692.6,1692.0,1.5761]
[1743961277304,1.5286,1693.0,1692.2,1.5761]
[1743961277508,5.66259,1693.3,1692.6,1.5761]
[1743961277691,6.642232,1693.3,1692.6,5.71174]
[1743961277893,4.13461,1693.1,1692.6,1.5761]
[1743961278200,0.55,1692.8,1692.3,1.5761]
[1743961278380,4.13542,1692.7,1692.3,1.5761]
[1743961278584,4.756822,1692.7,1692.3,1.5761]
[1743961278893,4.756822,1692.7,1692.1,8.124]
[1743961279091,0.55,1692.4,1692.1,8.124]
[1743961279294,0.55,1692.6,1692.1,8.124]
[1743961279600,7.13509,1692.9,1692.2,1.5761]
[1743961279776,10.88197994,1693.0,1692.2,5.71262]
[1743961279979,0.55,1692.6,1692.2,1.5761]
[1743961280300,10.88184994,1693.0,1692.3,4.19543543]
[1743961280513,6.74717994,1693.0,1692.2,1.5761]
[1743961280675,0.55,1692.8,1692.2,1.5761]
[1743961281006,0.18718365,1692.7,1692.2,1.5761]
[1743961281213,4.32269365,1692.7,1692.2,1.5761]
[1743961281511,4.68577,1692.6,1692.2,1.5761]
[1743961281700,4.68577,1692.6,1692.0,9.6981]
[1743961281701,0.55,1692.4,1692.0,9.6981]
[1743961281902,0.18618698,1692.3,1692.0,1.5761]
[1743961282220,4.13673,1692.2,1691.6,0.57767388]
[1743961282419,4.13673,1692.2,1691.1,4.704301]
[1743961282420,0.55,1692.0,1691.7,1.5761]
[1743961282622,0.18550967,1692.2,1691.7,1.5761]
[1743961282920,0.55,1692.4,1691.8,4.19670178]
[1743961283217,0.18577257,1692.3,1691.8,4.1376]
[1743961283421,0.18577257,1692.3,1691.9,0.05909524]
[1743961283722,0.55,1692.4,1691.8,4.19646419]
[1743961284022,0.18474646,1692.3,1692.0,1.5761]
[1743961284322,0.55,1692.2,1692.0,1.5761]
[1743961284531,0.18427527,1692.1,1691.8,9.6951]
[1743961284739,0.55,1692.2,1691.8,9.6951]
[1743961284896,0.1841113,1692.1,1691.8,9.6951]
[1743961285239,0.55,1692.2,1691.8,9.6951]
[1743961285436,0.18390299,1692.0,1691.8,1.5761]
[1743961285644,0.55,1692.2,1691.8,1.63520152]
[1743961286105,0.18416596,1692.1,1691.8,1.63520152]
[1743961286307,0.55,1692.2,1691.8,1.63520152]
[1743961286505,0.18416596,1692.1,1691.8,1.63520152]
[1743961286712,5.155318,1692.2,1691.8,1.5761]
[1743961286924,0.18416596,1692.1,1691.8,1.5761]
[1743961287127,5.155318,1692.2,1691.8,1.5761]
[1743961287329,0.55,1692.0,1691.5,1.5761]
[1743961287537,4.13802,1691.7,1691.3,1.5761]
[1743961287708,4.87072003,1691.6,1691.1,1.5761]
[1743961287911,0.55,1691.4,1691.1,1.5761]
[1743961288092,0.73167845,1691.3,1690.9,1.5761]
[1743961288293,0.73167845,1691.3,1690.5,1.5761]
[1743961288294,0.55,1691.1,1690.5,1.5761]
[1743961288518,4.14029,1690.8,1690.1,1.5761]
[1743961288752,4.87030587,1690.7,1689.9,1.5761]
[1743961288895,4.14084,1690.5,1689.9,1.5761]
[1743961289089,0.18177017,1690.4,1689.9,1.5761]
[1743961289296,0.55,1690.3,1689.9,1.5761]
[1743961289645,0.17895201,1690.2,1689.9,1.5761]
[1743961289826,0.17895201,1690.2,1689.9,5.71825]
[1743961290030,0.55,1690.7,1690.0,4.14201]
[1743961290249,0.17800423,1690.1,1689.9,6.290165]
[1743961290408,4.69043,1690.7,1689.9,10.432405]
[1743961290614,4.69033,1690.7,1689.9,6.290165]
[1743961290945,0.17932131,1690.6,1690.0,8.28367]
[1743961291162,0.17932131,1690.6,1690.1,12.25863]
[1743961291362,0.17932131,1690.6,1690.4,4.14102]
[1743961291548,4.1391,1691.2,1690.5,1.62214599]
[1743961291708,3.0,1691.0,1690.5,9.73814599]
[1743961291907,4.1408,1690.5,1690.0,1.596]
[1743961292204,0.15758345,1690.4,1690.0,1.596]
[1743961292723,4.14115,1690.4,1690.0,1.596]
[1743961292917,0.15693673,1690.3,1690.0,1.596]
[1743961293118,1.5286,1690.3,1689.6,1.596]
[1743961293342,4.14225,1689.9,1689.3,1.596]
[1743961293640,0.15498885,1689.8,1689.3,1.596]
[1743961294209,8.44025885,1689.8,1689.3,1.596]
[1743961294407,4.14292,1689.7,1689.2,8.116]
[1743961294647,8.28589,1689.7,1689.0,1.596]
[1743961294852,0.15396815,1689.6,1689.0,1.596]
[1743961295058,0.15396815,1689.6,1689.3,0.14098805]
[1743961295263,0.15396815,1689.6,1689.5,1.596]
[1743961295409,0.15396815,1689.6,1689.5,13.85423]
[1743961295617,5.66977,1690.4,1689.6,4.14296]
[1743961295927,4.14166,1690.2,1689.5,9.711]
[1743961296123,0.15660115,1690.1,1689.5,10.6821]
[1743961296450,0.15660115,1690.1,1689.6,8.26789265]
[1743961296758,4.14139,1690.3,1689.6,8.25585205]
[1743961296906,0.15693994,1690.0,1689.7,0.08194028]
[1743961297111,4.14152,1690.2,1689.7,0.08194028]
[1743961297335,0.15725823,1690.1,1689.7,0.08129311]
[1743961297736,0.15725823,1690.1,1689.6,8.114]
[1743961297954,4.14187,1690.1,1689.5,2.5671]
[1743961298153,8.28384,1690.1,1689.5,1.596]
[1743961298387,4.14243,1689.9,1689.5,1.596]
[1743961298686,0.15726852,1690.0,1689.2,1.605]
[1743961298885,4.14287,1689.7,1689.2,1.605]
[1743961299044,4.14304,1689.6,1689.2,1.605]
[1743961299247,4.14358,1689.4,1688.9,8.114]
[1743961299474,4.2994332,1689.6,1688.9,8.114]
[1743961299683,0.15558738,1689.3,1689.1,1.605]
[1743961299987,0.15537839,1689.2,1689.1,1.605]
[1743961300281,0.15537839,1689.2,1688.8,1.605]
[1743961300483,4.14343,1689.5,1688.8,9.72]
[1743961300641,4.14343,1689.5,1688.8,1.605]
[1743961300642,4.14349,1689.4,1688.8,1.605]
[1743961300973,0.15485222,1689.4,1688.9,0.05920055]
[1743961302075,0.15485222,1689.4,1689.0,1.605]
[1743961302273,1.5286,1689.8,1689.0,1.605]
[1743961302464,0.1417564,1689.3,1689.0,1.605]
[1743961302784,1.5286,1689.8,1689.1,4.14421]
[1743961302980,1.5286,1690.2,1689.5,4.1431]
[1743961303143,4.14186,1690.1,1689.3,5.7487]
[1743961303485,1.5286,1690.2,1689.3,1.605]
[1743961303654,8.28483,1689.9,1689.3,1.605]
[1743961303851,0.828483,1689.9,1689.3,1.605]
[1743961304051,0.55,1690.1,1689.4,0.05918487]
[1743961304262,0.55,1690.1,1689.3,1.605]
[1743961304263,4.14176,1690.1,1689.3,1.605]
[1743961304463,4.14286,1689.7,1689.2,8.114]
[1743961304782,1.5286,1690.2,1689.2,8.114]
[1743961304944,1.5286,1690.2,1689.5,4.14308]
[1743961305139,4.14239,1689.9,1689.3,1.605]
[1743961305343,4.14186,1690.1,1689.4,4.14345]
[1743961305553,1.5286,1690.2,1689.3,1.605]
[1743961305744,1.5286,1690.2,1689.7,1.605]
[1743961306055,1.5286,1690.2,1689.4,1.605]
[1743961306253,4.14106,1690.4,1689.7,4.14259]
[1743961306476,4.14128,1690.3,1689.7,8.112]
[1743961306680,5.66973,1690.4,1689.6,4.14297]
[1743961306880,4.14137,1690.3,1689.7,0.414297]
[1743961307044,1.5286,1690.4,1689.7,0.414297]
[1743961307379,1.5286,1690.4,1689.7,4.14261]
[1743961307680,4.14171,1690.2,1689.5,8.112]
[1743961307846,4.14183,1690.1,1689.5,8.112]
[1743961308178,4.555881,1690.2,1689.5,12.25522]
[1743961308480,4.14226,1689.9,1689.5,8.112]
[1743961308863,4.14227,1689.9,1689.5,8.112]
[1743961309070,4.14227,1689.9,1689.4,1.605]
[1743961309275,5.67065,1690.0,1689.4,2.5765]
[1743961309579,4.2859332,1689.8,1689.4,2.5765]
[1743961309780,4.28614676,1689.9,1689.4,1.605]
[1743961310079,0.14319437,1689.7,1689.4,1.605]
[1743961310240,1.5286,1690.0,1689.4,1.605]
[1743961310241,8.42865795,1689.8,1689.4,1.605]
[1743961310443,0.14287603,1689.6,1689.4,1.605]
[1743961310645,8.28471,1689.9,1689.4,1.605]
[1743961310867,8.28471,1689.9,1689.2,12.25294]
[1743961310868,0.14315996,1689.5,1689.1,1.6117]
[1743961311385,0.14262252,1689.4,1689.1,1.6117]
[1743961311678,1.67122252,1689.4,1688.6,1.541]
[1743961311880,4.1452,1688.7,1688.4,0.005]
[1743961312183,0.14034783,1688.6,1688.4,0.005]
[1743961312848,2.0786,1688.5,1688.4,0.005]
[1743961313087,6.36514093,1688.5,1688.4,0.005]
[1743961313283,1.66945093,1688.5,1688.4,0.005]
[1743961313444,0.14085093,1688.5,1688.4,4.15093]
[1743961313985,4.14434,1689.1,1688.4,0.005]
[1743961314160,5.67257,1689.2,1688.4,4.720136]
[1743961314358,0.14243386,1689.1,1688.7,1.541]
[1743961314564,4.14333,1689.5,1688.7,5.68619]
[1743961314762,4.14333,1689.5,1688.4,0.574216]
[1743961314763,5.21857994,1689.0,1688.4,0.005]
[1743961314982,4.28293266,1688.9,1688.4,0.005]
[1743961315194,8.42781266,1688.9,1688.4,0.005]
[1743961315376,4.145,1688.8,1688.4,0.005]
[1743961315558,0.55,1688.8,1688.4,0.005]
[1743961315760,4.69564,1688.6,1688.4,0.005]
[1743961316119,0.13767633,1688.5,1688.4,0.005]
[1743961316382,5.31669796,1688.5,1688.4,0.005]
[1743961317559,0.13767633,1688.5,1688.4,0.005]
[1743961317762,4.14539,1688.7,1688.4,0.005]
[1743961317969,0.12672455,1688.6,1688.4,0.005]
[1743961318364,9.81691,1689.2,1688.5,4.14569]
[1743961318561,4.2724739,1689.1,1688.4,12.25888]
[1743961318792,4.2724739,1689.1,1688.5,1.225888]
[1743961318995,8.4168839,1689.1,1688.5,1.225888]
[1743961319165,4.2724739,1689.1,1688.5,1.225888]
[1743961319583,4.2724339,1689.1,1688.5,1.225888]
[1743961319881,0.1282039,1689.1,1688.6,1.6211]
[1743961320082,0.1282039,1689.1,1689.0,4.14446]
[1743961320302,4.14349,1689.4,1689.1,1.6211]
[1743961320506,4.14299,1689.6,1689.1,1.6211]
[1743961320679,1.5286,1689.5,1688.8,9.7271]
[1743961320879,4.14437,1689.1,1688.8,8.106]
[1743961321080,4.14373,1689.3,1688.8,8.106]
[1743961321509,8.28765,1689.3,1688.8,8.106]
[1743961321735,0.55,1689.0,1688.6,1.6211]
[1743961322019,4.14472,1688.9,1688.4,1.5163]
[1743961322427,4.14472,1688.9,1688.4,0.005]
[1743961322428,4.14569,1688.5,1688.4,0.005]
[1743961322588,4.560259,1688.5,1688.4,0.005]
[1743961322797,5.110259,1688.5,1688.4,0.005]
[1743961323247,4.560259,1688.5,1688.4,0.005]
[1743961323377,1.5286,1687.9,1687.1,1.5113]
[1743961323581,4.14773,1687.7,1687.1,1.5113]
[1743961323810,4.14835,1687.5,1686.5,1.5113]
[1743961324022,4.14845,1687.4,1686.9,1.5113]
[1743961324221,0.414773,1687.7,1686.9,1.5113]
[1743961324516,4.1506,1686.5,1685.4,1.5113]
[1743961324812,0.55,1685.9,1685.1,0.30212995]
[1743961325030,5.21857994,1685.2,1684.6,10.224823]
[1743961325231,4.15408,1685.1,1684.6,6.069733]
[1743961325395,4.70375,1685.3,1684.6,6.069733]
[1743961325592,4.1541,1685.1,1684.6,6.069733]
[1743961325802,4.15215,1685.9,1684.7,9.6153]
[1743961326002,4.15301,1685.6,1684.7,5.66632]
[1743961326211,4.15247,1685.8,1685.0,4.15419]
[1743961326376,3.0,1686.3,1685.2,4.15363]
[1743961326589,6.09467,1686.4,1685.4,5.66442]
[1743961326805,4.15034,1686.7,1685.8,4.15217]
[1743961327009,1.5286,1686.9,1686.0,4.1516]
[1743961327309,4.1508,1686.5,1686.3,1.5113]
[1743961327483,5.21857994,1686.9,1685.8,9.67959376]
[1743961327679,3.0,1687.1,1685.9,0.96795938]
[1743961327992,4.15113,1686.3,1685.8,1.5113]
[1743961328198,8.30156,1686.5,1685.8,1.5113]
[1743961328383,5.21857994,1686.6,1685.8,1.5113]
[1743961328578,1.5286,1687.1,1686.3,4.15093]
[1743961328832,4.15086,1686.4,1685.8,1.57060073]
[1743961329037,1.5286,1687.1,1685.8,1.5113]
[1743961329327,1.5286,1687.1,1685.6,17.48028994]
[1743961329328,5.75081689,1687.0,1686.1,1.5113]
[1743961329523,5.75081689,1687.0,1686.2,8.108]
[1743961329728,5.75081689,1687.0,1686.4,4.15078]
[1743961329911,5.75081689,1687.0,1686.2,8.108]
[1743961330280,5.75081689,1687.0,1686.4,4.15084]
[1743961330579,5.75081689,1687.0,1686.6,4.15013]
[1743961330783,5.75081689,1687.0,1686.9,5.66092]
[1743961330982,5.75081689,1687.0,1685.8,1.5113]
[1743961331192,1.5286,1686.4,1685.0,4.1543]
[1743961331397,4.15075,1686.5,1685.7,4.15257]
[1743961331629,9.36881994,1686.7,1685.7,4.15257]
[1743961331781,4.15108,1686.4,1685.6,1.5113]
[1743961332122,1.5286,1686.8,1685.6,1.5113]
[1743961332416,4.15076,1686.5,1685.8,4.15231]
[1743961332630,4.70023,1686.7,1685.6,1.5113]
[1743961332813,4.15076,1686.5,1685.6,5.66407]
[1743961332985,4.15146,1686.2,1685.6,1.5113]
[1743961333186,0.55,1686.5,1685.6,1.5113]
[1743961333386,0.55,1686.5,1685.5,4.153]
[1743961333387,4.15149,1686.2,1685.5,4.153]
[1743961333683,4.15161,1686.1,1685.5,0.4153]
[1743961334085,4.15138,1686.2,1685.5,0.4153]
[1743961334281,4.15151,1686.2,1685.5,0.4153]
[1743961334485,4.15185,1686.0,1685.5,0.4153]
[1743961334797,0.55,1686.3,1685.1,0.41543]
[1743961335028,4.15427,1685.1,1684.3,5.76178]
[1743961335248,4.15499,1684.8,1684.3,1.6059]
[1743961335467,5.21857994,1685.0,1684.1,8.111]
[1743961335758,4.15625,1684.3,1683.8,0.29635621]
[1743961335963,4.15701,1683.9,1683.8,0.29635621]
[1743961336118,0.55,1684.3,1683.8,0.29635621]
[1743961336318,4.15701,1683.9,1683.8,0.29635621]
[1743961336566,4.158,1683.5,1682.6,0.55]
[1743961336844,4.15973,1682.8,1682.6,0.55]
[1743961337057,4.15973,1682.8,1681.9,0.01192316]
[1743961337058,4.16027,1682.6,1681.9,0.01192316]
[1743961337242,18.04104994,1682.5,1682.4,7.39e-06]
[1743961337549,4.1622,1681.8,1679.3,1.5191]
[1743961337769,4.16474,1680.8,1680.0,0.73555556]
[1743961337963,3.0,1681.2,1680.0,0.73555556]
[1743961338114,3.0,1681.2,1678.7,0.29318126]
[1743961338115,0.1,1680.4,1678.7,0.29318126]
[1743961338316,4.17044,1678.5,1677.4,5.48787659]
[1743961338677,0.1,1677.3,1675.0,4.17899]
[1743961338819,4.17389,1677.1,1675.3,0.1]
[1743961339145,4.17466,1676.8,1675.4,0.1]
[1743961339365,0.30425781,1677.4,1674.9,1.6]
[1743961339549,0.1,1678.7,1676.9,4.1743]
[1743961339715,9.95915875,1678.6,1677.2,22.31922495]
[1743961339932,9.95915875,1678.6,1677.3,4.17328]
[1743961339933,4.4750342,1678.6,1677.3,4.17328]
[1743961340133,1.5286,1676.7,1674.8,4.7e-07]
[1743961340457,0.1,1676.3,1674.8,4.7e-07]
[1743961340665,0.1,1674.7,1673.2,4.1836]
[1743961340973,0.1,1675.6,1673.3,5.17336]
[1743961341195,1.4685,1676.0,1673.3,0.41836]
[1743961341477,1.3685,1673.5,1672.5,11.72112172]
[1743961341678,0.82404722,1675.5,1672.6,1.17211217]
[1743961341679,0.1,1674.1,1672.6,1.17211217]
[1743961341895,0.1,1674.9,1673.4,1.5191]
[1743961342048,0.1,1674.2,1672.6,4.1851]
[1743961342384,4.17729,1675.8,1674.3,4.28085]
[1743961342596,4.1762,1676.2,1674.9,6.95717119]
[1743961342757,4.17504,1676.7,1675.3,4.17814]
[1743961342961,4.17407,1677.1,1675.2,1.5191]
[1743961342962,0.30387258,1675.7,1675.6,7.1776]
[1743961343175,5.75081689,1676.5,1675.6,4.1774]
[1743961343375,5.75081689,1676.5,1675.6,4.1776]
[1743961343674,6.29467564,1676.8,1676.7,7.17486]
[1743961343872,6.29467564,1676.8,1676.7,1.134996]
[1743961344201,6.29467564,1676.8,1675.5,1.5191]
[1743961344366,6.29467564,1676.8,1674.8,4.1796]
[1743961344367,3.3,1676.7,1675.2,4.1785]
[1743961344701,1.5574,1676.6,1676.0,4.17658]
[1743961344901,0.40759683,1676.7,1676.3,6.95717119]
[1743961345100,1.5574,1678.5,1677.4,4.17306]
[1743961345306,1.86196261,1678.5,1677.2,42.821]
[1743961345611,6.29467564,1678.9,1678.1,4.17117]
[1743961345915,6.29467564,1678.9,1678.8,4.16964]
[1743961346072,1.5574,1680.7,1679.6,4.16758]
[1743961346268,1.5574,1680.7,1679.2,42.821]
[1743961346463,0.85624722,1680.6,1678.3,42.821]
[1743961346655,6.95717119,1680.6,1679.1,4.16885]
[1743961346879,5.72253,1680.7,1679.1,4.16885]
[1743961346880,1.5574,1680.7,1679.5,4.1677]
[1743961347162,1.5574,1680.7,1678.7,6.95717119]
[1743961347163,6.95717119,1679.6,1678.6,0.01234292]
[1743961347365,3.0,1679.1,1677.6,42.821]
[1743961347584,9.6343205,1679.7,1678.2,4.17089]
[1743961347784,3.0,1679.6,1677.3,0.30903557]
[1743961347985,3.0,1679.6,1677.0,45.841]
[1743961347986,3.0,1679.6,1677.4,4.17311]
[1743961348187,48.54544,1679.9,1677.0,45.841]
[1743961348188,1.5574,1679.9,1678.0,2.93230054]
[1743961348414,1.5574,1680.5,1678.7,3.0]
[1743961348595,1.5574,1680.5,1678.9,4.16917]
[1743961348933,1.5574,1680.5,1678.8,4.16939]
[1743961349085,4.16667,1680.0,1678.6,42.832]
[1743961349283,3.0,1679.9,1678.5,4.17037]
[1743961349482,0.3,1679.8,1678.0,42.832]
[1743961349786,9.6343205,1680.3,1678.0,36.21229045]
[1743961349787,13.8003405,1680.3,1678.0,36.21229045]
[1743961350004,0.1,1681.3,1678.5,4.17039]
[1743961350197,0.1,1681.1,1678.6,4.587039]
[1743961350403,44.98705051,1680.9,1679.0,4.16896]
[1743961350643,2.14405051,1680.9,1679.6,4.16747]
[1743961350949,2.14405051,1680.9,1679.2,4.16851]
[1743961350950,5.72283,1680.5,1678.9,4.16921]
[1743961351099,11.1917205,1679.5,1677.2,4.17346]
[1743961351301,4.1703,1678.6,1677.1,4.17376]
[1743961351504,1.5574,1678.9,1677.2,4.17343]
[1743961351732,1.5574,1678.9,1677.2,42.843]
[1743961351898,1.5574,1679.5,1677.7,3.0]
[1743961352103,1.5574,1679.5,1677.8,0.3]
[1743961352298,1.5574,1679.5,1678.4,3.0]
[1743961352533,1.5574,1679.5,1678.6,4.17014]
[1743961352843,1.5574,1680.3,1679.3,4.16823]